[Event "45th FIDE Olympiad 2024"]
[Site "Budapest"]
[Date "2024.09.14"]
[Round "4"]
[White "Abdul Rahman, Ali"]
[Black "Savva, Panikos"]
[Result "0-1"]
[ECO "A45"]
[WhiteElo "1844"]
[BlackElo "1973"]
[PlyCount "112"]
[EventDate "2024.09.05"]
[EventType "team-tourn"]
[EventCountry "HUN"]
[WhiteTeam "Maldives"]
[BlackTeam "Cyprus"]
[WhiteTeamCountry "MDV"]
[BlackTeamCountry "CYP"]
[TimeControl "40/5400+30:1800+30"]

1. d4 Nf6 2. e3 g6 3. Bd3 Bg7 4. c3 O-O 5. f4 d6 6. Nf3 c5 7. O-O Nc6 8. Bb5 Qb6 9. Qe2 a6 10. Ba4 Bf5 11. Nbd2 cxd4 12. exd4 Nd5 13. Nc4 Qc7 14. Bb3 b5 15. Na3 Nb6 16. Nh4 Qd7 17. Nxf5 Qxf5 18. Bc2 Qd7 19. f5 b4 20. Nc4 Nxc4 21. Qxc4 d5 22. Qe2 bxc3 23. bxc3 Qd6 24. Rb1 e5 25. Rb3 Rfc8 26. Ba3 Qc7 27. fxg6 hxg6 28. Qf3 e4 29. Qf2 Na5 30. Rbb1 Nc4 31. Bc1 Qe7 32. Bb3 a5 33. Bxc4 Rxc4 34. Rb5 Qd7 35. Qb2 Rac8 36. Bd2 e3 37. Rb7 R8c7 38. Rb8+ Rc8 39. Rb7 R4c7 40. Rxc7 Qxc7 41. Bxe3 Qxc3 42. Qf2 Rc7 43. h3 Re7 44. Re1 Bxd4 45. Bxd4 Qxe1+ 46. Qxe1 Rxe1+ 47. Kf2 Re4 48. Bb6 Ra4 49. Kf3 Ra3+ 50. Kf4 Rxa2 51. g4 a4 52. Ke5 Rh2 53. Kxd5 Rxh3 54. g5 a3 55. Kc4 a2 56. Bd4 Rh4 {0-} 0-1

[Event "45th FIDE Olympiad 2024"]
[Site "Budapest"]
[Date "2024.09.14"]
[Round "4.1"]
[White "Caruana, Fabiano"]
[Black "Volokitin, Andrei"]
[Result "1-0"]
[ECO "B90"]
[WhiteElo "2798"]
[BlackElo "2660"]
[Annotator "TA"]
[PlyCount "85"]
[EventDate "2024.09.05"]
[EventType "team-tourn"]
[EventCountry "HUN"]
[SourceTitle "playchess.com"]
[Source "ChessBase"]
[SourceQuality "1"]
[WhiteTeam "United States of America"]
[BlackTeam "Ukraine"]
[BlackTeamCountry "UKR"]
[TimeControl "40/5400+30:1800+30"]

{[%evp 11,85,0,8,9,16,0,34,0,21,0,0,0,0,0,4,0,0,0,20,4,52,29,25,22,17,0,0,0,-3,-22,-25,-40,-35,-29,-33,-73,-49,-36,-47,-76,-16,-33,-22,-38,133,135,121,133,139,117,242,247,214,106,220,222,404,394,402,399,412,423,576,572,673,673,830,816,774,760,1664,1393,29979,29979,29986,29987]} 1. e4 {[%emt 0:00:04]} c5 {[%emt 0:00:05]} 2. Nf3 {[%emt 0:00:04]} d6 {[%emt 0:00:05]} 3. d4 {[%emt 0:00:05]} cxd4 {[%emt 0:00:04]} 4. Nxd4 {[%emt 0:00:04]} Nf6 {[%emt 0:00:03]} 5. Nc3 {[%emt 0:00:07]} a6 {[%emt 0:00:05]} 6. Bd3 {[%emt 0:00:05]} g6 {[%emt 0:03:17]} 7. f3 {[%emt 0:02:18]} Qb6 {[%emt 0:00:26]} 8. Nb3 {[%emt 0:00:59]} (8. a3 $5) 8... Nbd7 {[%emt 0:03:32]} 9. Qe2 {[%emt 0:00:42] White is slightly better.} Bg7 {[%emt 0:01:21]} 10. Be3 {[%emt 0:00:11]} Qc7 {[%emt 0:00:04]} 11. g4 {[%emt 0:00:05][%cal Bg2g4,Bg4g5][%mdl 32]} b5 {[%emt 0:00:29]} 12. g5 {[%emt 0:00:30]} Nh5 {[%emt 0:00:17][%cal Oc8b7]} 13. Nd5 {[%emt 0:00:05]} Qd8 {[%emt 0:00:09]} 14. O-O-O {[%emt 0:00:29]} Bb7 {[%emt 0:11:24]} 15. Qe1 {[%emt 0:15:31]} e6 {[%emt 0:40:57]} (15... Bxd5 $11 16. exd5 O-O) 16. Nf4 $1 $14 {[%emt 0:02:57]} Nxf4 {[%emt 0:05:38]} (16... Qxg5 $2 {is the wrong capture.} 17. Nxe6 Qf6 18. Nxg7+ Nxg7 19. Na5 $18) 17. Bxf4 {[%emt 0:00:04]} Ne5 {[%emt 0:09:12]} 18. Be2 {[%emt 0:00:55]} Rc8 {[%emt 0:02:26]} 19. Qb4 {[%emt 0:20:11]} d5 {[%emt 0:05:00]} 20. c3 {[%emt 0:20:06]} Qe7 {[%emt 0:08:13]} 21. Qxe7+ {[%emt 0:16:07]} Kxe7 {[%emt 0:00:01]} 22. exd5 {[%emt 0:00:17]} Bxd5 {[%emt 0:00:15]} 23. Be3 {[%emt 0:00:03]} Bxf3 {[%emt 0:08:19]} (23... Nxf3 $2 {loses.} 24. Rxd5 exd5 25. Bxf3 $18) 24. Bxf3 {[%emt 0:00:03]} Nxf3 {[%emt 0:00:02]} 25. Nc5 {[%emt 0:00:04]} Rhd8 {[%emt 0:00:57] Repels Rd7+} (25... h6 $1 $17 {[%cal Rh6g5]} 26. h4 hxg5 27. hxg5 Rxh1 28. Rxh1 Kf8) 26. Nxa6 {[%emt 0:00:05]} Rxd1+ {[%emt 0:00:35]} 27. Rxd1 {[%emt 0:00:06]} Nxh2 $2 {[%emt 0:00:22]} (27... Be5 $15 {keeps the upper hand.}) 28. Bc5+ {[%emt 0:01:33] White now steadily converts the win.} Ke8 {[%emt 0:00:37] [#]} 29. Bd6 $1 {[%emt 0:00:03] White is more active.} Nf3 {[%emt 0:00:05][%cal Og7e5]} 30. Nc7+ {[%emt 0:00:03]} Rxc7 {[%emt 0:00:26]} 31. Bxc7 $18 {[%emt 0:00:04] Rd8+ would now be deadly.} Nxg5 $16 {[%emt 0:00:04][%mdl 4096] Endgame. [#] KRB-KBN} 32. Rd8+ $1 {[%emt 0:01:03]} Ke7 {[%emt 0:00:01]} 33. Rb8 {[%emt 0:00:04] Strongly threatening Bd8+.} Ne4 $2 {[%emt 0:01:16]} (33... Kd7 34. Bf4 (34. Rxb5 $2 {too greedy.} Kxc7 35. a4 Ne4 $19) 34... Nf3) 34. Rxb5 $18 {[%emt 0:00:33]} Kd7 {[%emt 0:00:55]} 35. Bh2 {[%emt 0:00:11]} Kc6 {[%emt 0:00:10]} 36. Rb8 {[%emt 0:01:22]} f5 {[%emt 0:00:54][%cal Bf7f5,Bf5f4,Bf4f3][%mdl 32]} 37. a4 {[%emt 0:00:30][%cal Ba2a4,Ba4a5,Ba5a6][%mdl 32]} e5 {[%emt 0:00:41]} 38. a5 {[%emt 0:00:38]} Nc5 {[%emt 0:00:29] Prevents a6} 39. b4 {[%emt 0:00:31][%cal Bb2b4,Bb4b5][%mdl 32]} Nd7 {[%emt 0:00:25]} 40. b5+ {[%emt 0:00:21]} Kc7 {[%emt 0:00:17]} 41. Re8 {[%emt 0:30:10]} f4 {[%emt 0:09:13]} 42. a6 {[%emt 0:00:00]} f3 {[%emt 0:02:40]} 43. Bg1 {[%emt 0:00:00] Weighted Error Value: White=0.07 (flawless) /Black=0.54.  Mistake:       	---       	Black=5      Inaccurate:     	White=2     	Black=3      OK:         	White=10    	Black=10     Best:        	White=3     	Black=3      Strong:       	White=2     	---} 1-0

[Event "45th FIDE Olympiad 2024"]
[Site "Budapest"]
[Date "2024.09.14"]
[Round "4.1"]
[White "Allam, Mohamed"]
[Black "Khan, Taffin"]
[Result "1-0"]
[ECO "A55"]
[WhiteElo "2053"]
[BlackElo "2066"]
[PlyCount "99"]
[EventDate "2024.09.05"]
[EventType "team-tourn"]
[EventCountry "HUN"]
[WhiteTeam "Palestine"]
[BlackTeam "Guyana"]
[WhiteTeamCountry "PLE"]
[BlackTeamCountry "GUY"]
[TimeControl "40/5400+30:1800+30"]

1. d4 Nf6 2. c4 d6 3. Nc3 Nbd7 4. e4 e5 5. Nf3 Be7 6. Be2 O-O 7. O-O c6 8. b3 Qc7 9. Bb2 Re8 10. Rc1 Bf8 11. Qc2 b6 12. Rfd1 Bb7 13. d5 Rac8 14. a4 a5 15. Ba3 c5 16. Bd3 Ba6 17. Ne2 g6 18. Rb1 Bg7 19. Bc1 h6 20. h3 Re7 21. Be3 Rf8 22. Kf1 Bc8 23. Qd2 Kh7 24. g4 Ng8 25. Ng3 Nb8 26. Ke2 Na6 27. Rbc1 Nb4 28. Bb1 Bd7 29. Rg1 Qc8 30. Nh4 f6 31. Rg2 Ref7 32. Rcg1 Ne7 33. Ke1 Rh8 34. f4 Kg8 35. f5 g5 36. Nf3 Kf8 37. Rh2 Rg8 38. h4 Ke8 39. hxg5 hxg5 40. Bxg5 Bf8 41. Bxf6 Rxg4 42. Bxe5 Nxf5 43. exf5 dxe5 44. Nxe5 Re7 45. Re2 Rd4 46. Qg5 Rg7 47. Qf6 Re7 48. d6 Nc6 49. dxe7 Nxe7 50. Qf7+ 1-0

[Event "45th FIDE Olympiad 2024"]
[Site "Budapest"]
[Date "2024.09.14"]
[Round "4.2"]
[White "Ivanchuk, Vasyl"]
[Black "So, Wesley"]
[Result "1-0"]
[ECO "E36"]
[WhiteElo "2635"]
[BlackElo "2752"]
[Annotator "TA"]
[PlyCount "95"]
[EventDate "2024.09.05"]
[EventType "team-tourn"]
[EventCountry "HUN"]
[SourceTitle "playchess.com"]
[Source "ChessBase"]
[SourceQuality "1"]
[WhiteTeam "Ukraine"]
[BlackTeam "United States of America"]
[WhiteTeamCountry "UKR"]
[TimeControl "40/5400+30:1800+30"]

{[%evp 16,95,3,16,17,7,10,25,27,21,21,19,6,0,0,0,0,0,-5,-30,-32,-95,-96,-90,-89,-85,-70,-72,-43,-92,-48,-32,-27,-27,-37,-79,-85,-85,-51,-58,-55,-55,-27,-30,-25,-37,-43,-31,-31,-29,-30,-61,-2,-25,0,0,0,0,0,0,0,0,0,0,0,0,0,0,0,0,0,0,68,66,1277,1213,29975,29976,29976,29977,29977,29978]} 1. d4 {[%emt 0:00:02]} Nf6 {[%emt 0:00:14]} 2. c4 {[%emt 0:00:04]} e6 {[%emt 0:00:05]} 3. Nc3 {[%emt 0:00:02]} Bb4 {[%emt 0:00:05]} 4. Qc2 {[%emt 0:00:08]} O-O {[%emt 0:00:06]} 5. a3 {[%emt 0:00:09]} Bxc3+ {[%emt 0:00:04]} 6. Qxc3 {[%emt 0:00:02]} d5 {[%emt 0:00:12]} 7. Nf3 {[%emt 0:00:05]} dxc4 {[%emt 0:00:27]} 8. Qxc4 {[%emt 0:00:05]} b6 {[%emt 0:00:04]} 9. Bg5 {[%emt 0:00:05] E36: Nimzo-Indian: Classical: 4...d5 5 a3.} Ba6 {[%emt 0:02:26]} 10. Qa4 {[%emt 0:02:57]} Qd7 {[%emt 0:15:44]} 11. Qc2 {[%emt 0:00:16] 11.Qc2 has become a bit dusty these days.} c5 {[%emt 0:00:05]} 12. dxc5 {[%emt 0:06:26]} Rc8 {[%emt 0:00:14]} 13. Rd1 {[%emt 0:03:55]} Qe7 {[%emt 0:05:07]} 14. Qa4 $5 {[%emt 0:21:06][%mdl 4] An interesting side line.} bxc5 $146 {[%emt 0:06:52]} ({Predecessor:} 14... Qxc5 15. Bxf6 gxf6 16. e3 Bxf1 17. Rxf1 Nc6 18. Ke2 Na5 19. Rc1 Qf5 20. g4 Qd5 {1-0 Torres Rosas,L (2352)-Ruiz Castillo,J (2503) Charlotte CCCSA Summer GM-A 2021 (3)}) 15. h4 {[%emt 0:18:02]} c4 {[%emt 0:06:34]} 16. Rh3 {[%emt 0:06:59]} h6 {[%emt 0:10:19]} 17. Qc2 {[%emt 0:11:20]} Nbd7 {[%emt 0:06:14]} 18. Nd4 {[%emt 0:00:12]} (18. g4 $15) 18... Bb7 $17 {[%emt 0:02:05]} 19. Bd2 {[%emt 0:01:50]} a5 {[%emt 0:11:33]} 20. f3 {[%emt 0:00:37]} Qc5 {[%emt 0:08:11]} 21. Be3 {[%emt 0:03:01]} c3 {[%emt 0:01:17]} 22. Qxc3 {[%emt 0:00:31]} Qxc3+ {[%emt 0:01:28]} 23. bxc3 {[%emt 0:00:01]} Rxc3 {[%emt 0:01:31]} 24. Bc1 {[%emt 0:00:04]} Ba6 {[%emt 0:00:26]} 25. e4 {[%emt 0:11:59]} Bxf1 {[%emt 0:02:43]} 26. Kxf1 {[%emt 0:00:02]} Rac8 {[%emt 0:00:21]} 27. Bb2 {[%emt 0:00:18]} R3c5 {[%emt 0:01:57]} 28. g4 {[%emt 0:04:35]} Nb6 {[%emt 0:03:29]} 29. Rh2 {[%emt 0:00:46]} Nc4 {[%emt 0:03:46]} 30. Ke1 {[%emt 0:00:17]} Nxb2 {[%emt 0:01:31]} 31. Rxb2 {[%emt 0:00:03]} Rc3 {[%emt 0:00:06]} 32. a4 {[%emt 0:03:47]} Ra3 {[%emt 0:01:51]} 33. Rb6 {[%emt 0:03:16]} Rd8 {[%emt 0:03:16]} ({Better is} 33... Rxa4 $15 34. Nc6 Rc7) 34. Rb5 {[%emt 0:01:39]} g6 {[%emt 0:03:15]} 35. Nb3 {[%emt 0:01:34]} Rc8 {[%emt 0:00:26]} 36. Ke2 {[%emt 0:00:52]} Rc4 {[%emt 0:02:03]} 37. Rd8+ {[%emt 0:01:03]} Kg7 {[%emt 0:00:03]} 38. g5 {[%emt 0:00:46]} Nxe4 {[%emt 0:02:16]} 39. gxh6+ {[%emt 0:00:29]} Kxh6 {[%emt 0:00:17]} 40. fxe4 {[%emt 0:00:01]} Rxe4+ {[%emt 0:00:04]} (40... Raxa4 41. Nd2 (41. Nxa5 Rxe4+ 42. Kf2 Rf4+ 43. Kg2 Rg4+ 44. Kf2 Raf4+ 45. Ke2 Rxh4 $15) 41... Ra2 42. Rxa5 Rxe4+ 43. Kf3 $14) 41. Kf2 {[%emt 0:05:44]} Rexa4 {[%emt 0:04:31]} 42. Nd4 {[%emt 0:00:14]} Ra2+ {[%emt 0:03:29]} 43. Kg3 {[%emt 0:02:07]} R4a3+ {[%emt 0:05:38]} (43... R2a3+ $11 44. Nf3 Rb4 45. Rxb4 axb4) 44. Nf3 $14 {[%emt 0:00:24]} Re2 $2 {[%emt 0:00:12][%mdl 8192]} (44... Kg7 $14) 45. Rb7 $18 {[%emt 0:03:40]} Re5 {[%emt 0:10:39]} 46. Rxf7 {[%emt 0:02:13]} g5 {[%emt 0:00:02]} 47. h5 {[%emt 0:05:32]} Kxh5 {[%emt 0:00:03] [#]} 48. Rf6 $1 {[%emt 0:00:08]} 1-0

[Event "45th FIDE Olympiad 2024"]
[Site "Budapest"]
[Date "2024.09.14"]
[Round "4.2"]
[White "Drayton, Anthony"]
[Black "Michel Yunis, Christian D."]
[Result "0-1"]
[ECO "D02"]
[WhiteElo "1964"]
[BlackElo "2220"]
[PlyCount "166"]
[EventDate "2024.09.05"]
[EventType "team-tourn"]
[EventCountry "HUN"]
[WhiteTeam "Guyana"]
[BlackTeam "Palestine"]
[WhiteTeamCountry "GUY"]
[BlackTeamCountry "PLE"]
[TimeControl "40/5400+30:1800+30"]

1. d4 d5 2. Bf4 Nf6 3. e3 e6 4. Nf3 c5 5. Nc3 a6 6. a4 Nc6 7. Be2 Bd6 8. Bg3 O-O 9. O-O Bxg3 10. hxg3 Qd6 11. Qd2 Rd8 12. a5 Ne4 13. Qd1 Nxc3 14. bxc3 Qc7 15. dxc5 Nxa5 16. Qd4 Nc6 17. Qh4 Qe7 18. Qxe7 Nxe7 19. Rfb1 Rd7 20. c4 Rc7 21. Ra5 Nc6 22. Ra2 dxc4 23. Bxc4 Kf8 24. Bd3 Nb8 25. Ne5 Rxc5 26. Nc4 Nd7 27. Nd6 Rc7 28. Nb5 Rc6 29. Nd4 Rb6 30. Rxb6 Nxb6 31. Rb2 Na4 32. Ra2 Nc5 33. Be2 e5 34. Nb3 Be6 35. Ra3 Rc8 36. Bf3 Nxb3 37. cxb3 Rc1+ 38. Kh2 Rc7 39. g4 f6 40. Kg3 Ke7 41. Be4 Kd6 42. b4 g6 43. f4 Bc4 44. Ra1 b6 45. Rd1+ Ke7 46. Rh1 Kd8 47. f5 g5 48. Rh6 Rf7 49. Kf2 a5 50. bxa5 bxa5 51. Ke1 a4 52. Kd2 a3 53. Kc3 a2 54. Kb2 Ra7 55. Ka1 Rd7 56. Rh1 Rd2 57. Bf3 Bb3 58. Rxh7 Rf2 59. Rh1 Kc7 60. Rc1+ Kb6 61. Bc6 Ka5 62. Bd7 Rxg2 63. Be6 Kb4 64. e4 Rxg4 65. Bd5 Rf4 66. Kb2 Rf2+ 67. Ka1 Bc2 68. Bxa2 Re2 69. Bd5 g4 70. Rg1 Kc3 71. Rxg4 Re1+ 72. Ka2 Bb1+ 73. Ka3 Bd3 74. Ka2 Kd4 75. Rg6 Bxe4 76. Bxe4 Kxe4 77. Rxf6 Rf1 78. Kb2 Rxf5 79. Ra6 Rf8 80. Kc2 Ke3 81. Ra3+ Ke2 82. Rc3 e4 83. Rc7 e3 {0-} 0-1

[Event "45th FIDE Olympiad 2024"]
[Site "Budapest"]
[Date "2024.09.14"]
[Round "4.3"]
[White "Dominguez Perez, Leinier"]
[Black "Ponomariov, Ruslan"]
[Result "1/2-1/2"]
[ECO "C54"]
[WhiteElo "2748"]
[BlackElo "2654"]
[Annotator "TA"]
[PlyCount "60"]
[EventDate "2024.09.05"]
[EventType "team-tourn"]
[EventCountry "HUN"]
[SourceTitle "playchess.com"]
[Source "ChessBase"]
[SourceQuality "1"]
[WhiteTeam "United States of America"]
[BlackTeam "Ukraine"]
[BlackTeamCountry "UKR"]
[TimeControl "40/5400+30:1800+30"]

{[%evp 10,60,14,12,9,3,35,17,20,5,17,0,10,0,0,0,0,0,0,0,0,0,17,14,33,0,15,-13,77,58,74,80,75,81,58,64,68,54,93,93,87,80,107,0,0,0,0,0,0,0,0,0,0]} 1. e4 {[%emt 0:00:04]} e5 {[%emt 0:00:08]} 2. Nf3 {[%emt 0:00:10]} Nc6 {[%emt 0:00:09]} 3. Bc4 {[%emt 0:00:29]} Bc5 {[%emt 0:00:20]} 4. c3 {[%emt 0:00:57]} Nf6 {[%emt 0:00:09]} 5. d3 {[%emt 0:00:17]} d6 {[%emt 0:00:21]} 6. O-O {[%emt 0:00:15]} a5 {[%emt 0:01:01]} 7. Re1 {[%emt 0:01:11]} Ba7 {[%emt 0:02:08]} 8. h3 {[%emt 0:06:34]} O-O {[%emt 0:00:45]} 9. Bb5 {[%emt 0:06:23]} Bd7 {[%emt 0:11:15]} 10. Ba4 {[%emt 0:21:24][%cal Bb5a4,Ba4c2,Bc2d3,Bd3f1][%mdl 32]} Ne7 {[%emt 0:15:13][%cal Bc6e7,Be7g6,Bg6f4][%mdl 32]} 11. Bc2 {[%emt 0:00:15]} Ng6 {[%emt 0:00:20]} 12. d4 {[%emt 0:07:21]} Re8 {[%emt 0:03:21][%cal Oa5a4]} 13. Nbd2 {[%emt 0:00:54]} Bc6 {[%emt 0:10:07][%cal Oa5a4]} 14. a4 {[%emt 0:00:49]} h6 {[%emt 0:01:04]} 15. Bd3 {[%emt 0:10:18]} Nf4 {[%emt 0:07:07]} 16. Bf1 {[%emt 0:00:27]} g5 {[%emt 0:00:22]} 17. g3 {[%emt 0:04:55]} Ng6 {[%emt 0:00:37]} 18. Qc2 {[%emt 0:11:07]} d5 {[%emt 0:12:56]} (18... Qc8 $11 {remains equal.}) 19. exd5 $1 $16 {[%emt 0:01:05]} Bxd5 {[%emt 0:00:26]} (19... Qxd5 $2 {is the wrong capture.} 20. Bc4 $18) 20. Nxe5 {[%emt 0:07:29]} Nxe5 {[%emt 0:01:16]} 21. dxe5 {[%emt 0:00:54]} ({Don't play} 21. Rxe5 Rxe5 22. dxe5 Nd7 $11) 21... Nd7 {[%emt 0:00:42]} 22. Qf5 {[%emt 0:07:52]} Be6 {[%emt 0:05:46]} 23. Qf3 {[%emt 0:00:34]} c6 {[%emt 0:00:11] [#]} 24. Qh5 $1 {[%emt 0:04:48]} Kg7 {[%emt 0:09:48]} 25. Nf3 {[%emt 0:01:36]} f6 {[%emt 0:08:35] [#]} 26. Be3 {[%emt 0:03:44]} ({White has to play} 26. Nh4 $1 $16 Qe7 (26... Nxe5 $2 27. Rxe5 Bxf2+ 28. Kxf2 $18) 27. Qg6+ Kh8 28. Qxh6+ Qh7 29. Qxh7+ Kxh7 30. Bd3+ Kg8 31. Nf3) 26... Bf7 $11 {[%emt 0:02:20] Prevents Qg6+. The position is equal.} 27. Qg4 {[%emt 0:00:02]} Be6 $1 {[%emt 0:01:14]} 28. Qh5 {[%emt 0:00:05] Bxa7 would now be deadly.} Bf7 {[%emt 0:00:09]} 29. Qg4 {[%emt 0:00:01] And now Bxa7 would win.} Be6 $1 {[%emt 0:00:07]} 30. Qh5 {[%emt 0:02:46] aiming for Bxa7.} Bf7 {[%emt 0:00:18] Weighted Error Value: White=0.08 (flawless) /Black=0.10 (very precise) .  Mistake:       	White=1     	Black=1      Inaccurate:     	White=1     	Black=2      OK:         	White=11    	Black=10     Best:        	White=1     	Black=2      Strong:       	White=2     	Black=2} 1/2-1/2

[Event "45th FIDE Olympiad 2024"]
[Site "Budapest"]
[Date "2024.09.14"]
[Round "4.3"]
[White "Abdel Wahab, Ahmad"]
[Black "Sandiford, Keron"]
[Result "1-0"]
[ECO "E47"]
[WhiteElo "1995"]
[BlackElo "1755"]
[PlyCount "97"]
[EventDate "2024.09.05"]
[EventType "team-tourn"]
[EventCountry "HUN"]
[WhiteTeam "Palestine"]
[BlackTeam "Guyana"]
[WhiteTeamCountry "PLE"]
[BlackTeamCountry "GUY"]
[TimeControl "40/5400+30:1800+30"]

1. d4 Nf6 2. c4 e6 3. Nc3 Bb4 4. e3 O-O 5. Bd3 c5 6. Nge2 cxd4 7. exd4 d5 8. cxd5 exd5 9. O-O h6 10. a3 Ba5 11. b4 Bb6 12. Na4 Bc7 13. Qc2 Bd6 14. h3 b6 15. Be3 Ba6 16. b5 Bc8 17. Rfc1 Be6 18. Qb2 Qe7 19. Bf4 Rc8 20. Rxc8+ Bxc8 21. Rc1 Be6 22. Bxd6 Qxd6 23. Nac3 Nbd7 24. Na2 Nf8 25. Rc6 Qd8 26. Qc2 Rc8 27. Nb4 Rxc6 28. bxc6 Ne8 29. f4 Bc8 30. Qa2 a5 31. Qxd5 Ne6 32. Qxd8 Nxd8 33. Nd5 Be6 34. c7 Nc6 35. f5 Bc8 36. Nxb6 Na7 37. Nxc8 Nxc8 38. Ba6 Ned6 39. Bxc8 Nxc8 40. Nc3 Kf8 41. Nb5 Ke7 42. d5 Kd7 43. d6 a4 44. Kf2 Kc6 45. Ke3 g6 46. Ke4 Kd7 47. fxg6 fxg6 48. Kd5 Nb6+ 49. Kc5 1-0

[Event "45th FIDE Olympiad 2024"]
[Site "Budapest"]
[Date "2024.09.14"]
[Round "4.4"]
[White "Korobov, Anton"]
[Black "Robson, Ray"]
[Result "1-0"]
[ECO "C54"]
[WhiteElo "2650"]
[BlackElo "2700"]
[Annotator "TA"]
[PlyCount "113"]
[EventDate "2024.09.05"]
[EventType "team-tourn"]
[EventCountry "HUN"]
[SourceTitle "playchess.com"]
[Source "ChessBase"]
[SourceQuality "1"]
[WhiteTeam "Ukraine"]
[BlackTeam "United States of America"]
[WhiteTeamCountry "UKR"]
[TimeControl "40/5400+30:1800+30"]

{[%evp 52,113,47,0,115,135,147,147,195,191,279,223,218,216,291,155,144,130,137,72,18,24,307,362,357,372,362,372,487,480,508,506,625,615,700,609,674,720,663,645,946,925,1738,1702,2098,1962,2809,2249,5903,4922,29973,29975,29975,29976,29976,29977,29977,29978,29979,29980,29986,29975,29975,29975]} 1. e4 {[%emt 0:00:03]} e5 {[%emt 0:00:20]} 2. Nf3 {[%emt 0:00:08]} Nc6 {[%emt 0:00:10]} 3. Bc4 {[%emt 0:00:08]} Nf6 {[%emt 0:00:18]} 4. d3 {[%emt 0:00:07]} Bc5 {[%emt 0:00:21]} 5. O-O {[%emt 0:00:09]} d6 {[%emt 0:00:39]} 6. c3 {[%emt 0:00:21]} h6 {[%emt 0:03:38]} 7. b4 {[%emt 0:01:27]} Bb6 {[%emt 0:00:19]} 8. a4 {[%emt 0:00:07]} a5 {[%emt 0:01:11] The main line 8...a5 scores better than 8...a6. C54: Giuoco Piano: 4 c3 Nf6, main lines with 5 d4 and 5 d3.} 9. b5 {[%emt 0:00:06]} Ne7 {[%emt 0:00:28]} 10. Be3 {[%emt 0:00:06]} Bxe3 {[%emt 0:03:27]} 11. fxe3 {[%emt 0:01:31]} Ng6 {[%emt 0:04:42]} 12. Bb3 {[%emt 0:05:02]} c6 $146 {[%emt 0:07:20]} ({Predecessor:} 12... d5 13. exd5 Nxd5 14. Qe1 O-O 15. d4 c6 16. Kh1 Qe7 17. c4 Nb4 18. Nc3 Bg4 {½-½ Rodriguez Fraga,Y (2425)-Morales,O (2362) WZ-ch fin01 email 2018}) 13. c4 {[%emt 0:02:08]} d5 {[%emt 0:12:21]} 14. exd5 {[%emt 0:18:26]} cxd5 {[%emt 0:00:30]} 15. c5 {[%emt 0:03:11]} Qe7 {[%emt 0:21:12]} 16. d4 {[%emt 0:08:02]} Ng4 {[%emt 0:04:14]} 17. Nc3 {[%emt 0:07:29]} Be6 {[%emt 0:08:49]} 18. Qe1 {[%emt 0:07:54]} e4 {[%emt 0:02:01]} 19. Nd2 {[%emt 0:02:46]} Qc7 {[%emt 0:04:35]} 20. Qg3 {[%emt 0:01:19]} Qxg3 {[%emt 0:00:23]} 21. hxg3 {[%emt 0:00:03]} Ne7 {[%emt 0:06:39]} 22. Rae1 {[%emt 0:12:26]} h5 {[%emt 0:01:19]} 23. Bd1 {[%emt 0:05:00]} Nf6 {[%emt 0:01:09]} 24. b6 {[%emt 0:03:53]} Nf5 {[%emt 0:02:46]} 25. Kf2 {[%emt 0:03:39]} Bd7 {[%emt 0:00:27]} 26. Rh1 {[%emt 0:03:09]} Rh6 {[%emt 0:04:02]} 27. Rh2 {[%emt 0:02:13]} (27. Bxh5 $14 Rxh5 28. Rxh5 Nxh5 29. Nxd5 (29. g4 Nxd4 30. Rh1 Ne6 $16)) 27... Bc6 {[%emt 0:03:35]} (27... Kf8 $1 $11) 28. Reh1 $1 $16 {[%emt 0:01:00]} Ke7 {[%emt 0:00:31]} 29. Bxh5 {[%emt 0:02:10]} Rxh5 {[%emt 0:02:05]} (29... Rah8 $16 30. g4 g6) 30. Rxh5 $18 {[%emt 0:00:51]} Ng4+ {[%emt 0:00:01]} (30... Nxh5 {was called for.} 31. Rxh5 Ke6) 31. Ke1 {[%emt 0:02:17]} Ngxe3 {[%emt 0:00:24] [#]} 32. Nb3 $1 {[%emt 0:01:36]} Kf6 {[%emt 0:05:13]} 33. Rh8 {[%emt 0:01:10]} (33. g4 $18 g6 34. Rh8 Nc2+ 35. Kd1 Ncxd4 36. Nxe4+ (36. Rxa8 Ne3+ 37. Ke1 Nxb3 $18) (36. gxf5 Rxh8 37. Rxh8 Nxb3 $14) 36... Ke5 37. Rxa8 Ne3+ 38. Ke1 (38. Kd2 Nxb3+ 39. Kxe3 d4+ 40. Kf2 Kxe4 $18) 38... Nxb3 39. Rc8 Nc2+ (39... Kxe4 $2 40. Rxc6 Nxg2+ 41. Kf2 $18) 40. Kf2 (40. Kd1 Nb4 $18)) 33... Nc2+ $16 {[%emt 0:00:09]} 34. Kd2 {[%emt 0:00:43]} Ncxd4 {[%emt 0:00:11]} 35. Rxa8 {[%emt 0:05:41]} (35. Nxd4 $142 Rxh8 36. Rf1 (36. Rxh8 Nxd4 37. Rc8 Nb3+ 38. Ke2 Nxc5 $16)) 35... Nxb3+ $16 {[%emt 0:00:04]} 36. Kc2 {[%emt 0:00:15]} Nxc5 $2 {[%emt 0:01:02][%mdl 8192] [#]} (36... Nfd4+ $11 37. Kb2 Nxc5) 37. Rf1 $1 $18 {[%emt 0:00:45]} ({Weaker is} 37. Rxa5 Nd4+ 38. Kb2 Nde6 $11) 37... Ke5 {[%emt 0:01:39]} 38. Rxf5+ $1 {[%emt 0:00:06]} (38. Rxa5 $2 {too greedy.} Ne3+ (38... Nxg3 $2 {perishes.} 39. Rxc5 Nxf1 40. Rxc6 $18) 39. Kb1 Nb3 $19 (39... Nxf1 $2 40. Rxc5 Kd6 41. Ra5 $19)) 38... Kxf5 {[%emt 0:00:02]} 39. Rxa5 {[%emt 0:00:07]} Nd3 {[%emt 0:01:13]} 40. Nxd5 {[%emt 0:00:22]} Kg4 {[%emt 0:00:22]} 41. Kd2 {[%emt 0:10:25]} g6 {[%emt 0:09:38]} 42. Ke3 {[%emt 0:08:25]} f5 {[%emt 0:06:59]} 43. Ne7 {[%emt 0:01:52]} Bd7 {[%emt 0:00:40]} 44. Nxg6 {[%emt 0:02:51]} Kxg3 {[%emt 0:00:56]} 45. Ne7 {[%emt 0:01:43]} Kg4 {[%emt 0:02:31]} 46. Ra8 {[%emt 0:00:42]} Be6 {[%emt 0:06:13]} 47. a5 {[%emt 0:00:21]} Nc5 {[%emt 0:00:58]} 48. Ng6 {[%emt 0:00:35]} Kg5 {[%emt 0:01:04]} 49. Nf4 {[%emt 0:00:19]} Bd7 {[%emt 0:00:31]} 50. Rd8 {[%emt 0:01:30]} Bc6 {[%emt 0:01:26]} 51. Rd6 {[%emt 0:00:49]} Be8 {[%emt 0:00:11]} 52. Ne6+ {[%emt 0:02:42]} Nxe6 {[%emt 0:00:08]} 53. Rxe6 {[%emt 0:00:02]} Bb5 {[%emt 0:00:12]} 54. g3 {[%emt 0:00:50]} Ba6 {[%emt 0:00:21]} 55. Re8 {[%emt 0:00:15]} Kg4 {[%emt 0:00:36]} 56. Rg8+ {[%emt 0:00:17]} Kh3 {[%emt 0:00:04]} 57. Rg5 {[%emt 0:00:06]} 1-0